[Event "Titled Tuesday Blitz July 11 Early 2023"]
[White "Wang2007"]
[Black "Bruedigam, Martin"]
[BlackFideId "24608033"]
[WhiteElo "2218"]
[BlackElo "2560"]
[Result "0-1"]
[Round "1"]
[TimeControl "180+2"]
[Date "2023.07.11"]
[WhiteClock "0:00:00"]
[BlackClock "0:00:14"]
[Board "183"]

1. d4 {[%clk 0:02:53]}  Nf6 {[%clk 0:03:00]} 2. c4 {[%clk 0:02:53]}  g6 {[%clk 0:03:00]} 3. Nf3 {[%clk 0:02:54]}  Bg7 {[%clk 0:03:00]} 4. g3 {[%clk 0:02:54]}  O-O {[%clk 0:02:59]} 5. Bg2 {[%clk 0:02:55]}  c6 {[%clk 0:02:58]} 6. O-O {[%clk 0:02:55]}  d5 {[%clk 0:02:59]} 7. cxd5 {[%clk 0:02:55]}  cxd5 {[%clk 0:02:58]} 8. Nc3 {[%clk 0:02:55]}  Ne4 {[%clk 0:02:55]} 9. Ne5 {[%clk 0:02:55]}  Nxc3 {[%clk 0:02:53]} 10. bxc3 {[%clk 0:02:56]}  e6 {[%clk 0:02:53]} 11. Ba3 {[%clk 0:02:33]}  Re8 {[%clk 0:02:53]} 12. Rb1 {[%clk 0:01:57]}  Qa5 {[%clk 0:02:41]} 13. Bb4 {[%clk 0:01:41]}  Qc7 {[%clk 0:02:39]} 14. Nd3 {[%clk 0:01:32]}  Bd7 {[%clk 0:02:32]} 15. e4 {[%clk 0:01:20]}  dxe4 {[%clk 0:02:29]} 16. Bxe4 {[%clk 0:01:21]}  Bc6 {[%clk 0:02:29]} 17. Qe2 {[%clk 0:01:19]}  Nd7 {[%clk 0:02:19]} 18. Rfc1 {[%clk 0:01:18]}  Rac8 {[%clk 0:02:16]} 19. Ba3 {[%clk 0:01:07]}  Nb6 {[%clk 0:01:57]} 20. Nc5 {[%clk 0:01:04]}  e5 {[%clk 0:01:39]} 21. Bxc6 {[%clk 0:00:50]}  Qxc6 {[%clk 0:01:37]} 22. Qb5 {[%clk 0:00:22]}  Qf3 {[%clk 0:00:46]} 23. Qd3 {[%clk 0:00:11]}  Qxd3 {[%clk 0:00:30]} 24. Nxd3 {[%clk 0:00:12]}  exd4 {[%clk 0:00:29]} 25. cxd4 {[%clk 0:00:13]}  Bxd4 {[%clk 0:00:29]} 26. Bc5 {[%clk 0:00:12]}  Bxc5 {[%clk 0:00:21]} 27. Rxc5 {[%clk 0:00:13]}  Rxc5 {[%clk 0:00:19]} 28. Nxc5 {[%clk 0:00:14]}  Re7 {[%clk 0:00:19]} 29. Kf1 {[%clk 0:00:14]}  Rc7 {[%clk 0:00:18]} 30. Rb5 {[%clk 0:00:12]}  Kf8 {[%clk 0:00:17]} 31. a4 {[%clk 0:00:11]}  Ke7 {[%clk 0:00:11]} 32. a5 {[%clk 0:00:11]}  Nc4 {[%clk 0:00:11]} 33. Nxb7 {[%clk 0:00:10]}  a6 {[%clk 0:00:10]} 34. Rb4 {[%clk 0:00:10]}  Kd7 {[%clk 0:00:09]} 35. Ke2 {[%clk 0:00:09]}  Kc8 {[%clk 0:00:09]} 36. Rxc4 {[%clk 0:00:08]}  Kxb7 {[%clk 0:00:09]} 37. Rb4+ {[%clk 0:00:08]}  Ka7 {[%clk 0:00:09]} 38. Kd3 {[%clk 0:00:08]}  Rc5 {[%clk 0:00:09]} 39. Ra4 {[%clk 0:00:08]}  Rf5 {[%clk 0:00:09]} 40. f4 {[%clk 0:00:07]}  h5 {[%clk 0:00:09]} 41. Kd4 {[%clk 0:00:06]}  Kb7 {[%clk 0:00:09]} 42. Rb4+ {[%clk 0:00:06]}  Kc7 {[%clk 0:00:10]} 43. Rc4+ {[%clk 0:00:05]}  Kd7 {[%clk 0:00:09]} 44. Rc5 {[%clk 0:00:06]}  Kd6 {[%clk 0:00:07]} 45. Rxf5 {[%clk 0:00:05]}  gxf5 {[%clk 0:00:08]} 46. h4 {[%clk 0:00:05]}  Kc6 {[%clk 0:00:09]} 47. Kc4 {[%clk 0:00:05]}  Kd6 {[%clk 0:00:08]} 48. Kd4 {[%clk 0:00:06]}  f6 {[%clk 0:00:08]} 49. Kc4 {[%clk 0:00:06]}  Kc6 {[%clk 0:00:09]} 50. Kd4 {[%clk 0:00:01]}  Kb5 {[%clk 0:00:09]} 51. Kd5 {[%clk 0:00:02]}  Kxa5 {[%clk 0:00:10]} 52. Ke6 {[%clk 0:00:02]}  Kb5 {[%clk 0:00:11]} 53. Kxf5 {[%clk 0:00:03]}  a5 {[%clk 0:00:11]} 54. Kxf6 {[%clk 0:00:03]}  a4 {[%clk 0:00:12]} 55. Kg6 {[%clk 0:00:01]}  a3 {[%clk 0:00:13]} 56. f5 {[%clk 0:00:01]}  a2 {[%clk 0:00:13]} 57. f6 {[%clk 0:00:02]}  a1=Q {[%clk 0:00:14]} 58. f7 {[%clk 0:00:00]}  Qh8 {[%clk 0:00:14]} 0-1


[Site "https://www.chess.com"]

[Event "Titled Tuesday Blitz July 11 Early 2023"]
[White "Adla, Diego"]
[Black "Peiris, T G M"]
[WhiteFideId "100072"]
[BlackFideId "9901310"]
[WhiteElo "2558"]
[BlackElo "2210"]
[Result "0-1"]
[Round "1"]
[TimeControl "180+2"]
[Date "2023.07.11"]
[WhiteClock "0:00:00"]
[BlackClock "0:00:17"]
[Board "184"]

1. e4 {[%clk 0:02:59]}  c5 {[%clk 0:02:59]} 2. Nf3 {[%clk 0:02:58]}  d6 {[%clk 0:02:58]} 3. d4 {[%clk 0:02:59]}  cxd4 {[%clk 0:02:58]} 4. Nxd4 {[%clk 0:03:00]}  a6 {[%clk 0:02:59]} 5. Nc3 {[%clk 0:02:56]}  e6 {[%clk 0:02:59]} 6. Be3 {[%clk 0:02:53]}  Qc7 {[%clk 0:03:00]} 7. Qd2 {[%clk 0:02:50]}  Nf6 {[%clk 0:03:00]} 8. f3 {[%clk 0:02:50]}  Be7 {[%clk 0:02:59]} 9. O-O-O {[%clk 0:02:48]}  b5 {[%clk 0:02:59]} 10. Kb1 {[%clk 0:02:44]}  O-O {[%clk 0:02:59]} 11. g4 {[%clk 0:02:44]}  Bb7 {[%clk 0:02:57]} 12. h4 {[%clk 0:02:37]}  Nc6 {[%clk 0:02:53]} 13. g5 {[%clk 0:02:31]}  Nd7 {[%clk 0:02:51]} 14. h5 {[%clk 0:02:27]}  Nde5 {[%clk 0:02:48]} 15. Bg2 {[%clk 0:02:17]}  Nc4 {[%clk 0:02:47]} 16. Qe2 {[%clk 0:02:15]}  Nxe3 {[%clk 0:02:48]} 17. Qxe3 {[%clk 0:02:16]}  Qb6 {[%clk 0:02:40]} 18. Qg1 {[%clk 0:01:58]}  Nxd4 {[%clk 0:02:33]} 19. Qxd4 {[%clk 0:01:54]}  Qxd4 {[%clk 0:02:29]} 20. Rxd4 {[%clk 0:01:55]}  Bxg5 {[%clk 0:02:27]} 21. Rxd6 {[%clk 0:01:53]}  Rfd8 {[%clk 0:02:27]} 22. Rhd1 {[%clk 0:01:52]}  Kf8 {[%clk 0:02:27]} 23. f4 {[%clk 0:01:44]}  Bxf4 {[%clk 0:02:24]} 24. Rxd8+ {[%clk 0:01:43]}  Rxd8 {[%clk 0:02:23]} 25. Rxd8+ {[%clk 0:01:43]}  Ke7 {[%clk 0:02:24]} 26. Rh8 {[%clk 0:01:39]}  h6 {[%clk 0:02:23]} 27. Rh7 {[%clk 0:01:38]}  Be5 {[%clk 0:02:13]} 28. Ne2 {[%clk 0:01:28]}  f5 {[%clk 0:02:08]} 29. Rh8 {[%clk 0:01:18]}  f4 {[%clk 0:01:37]} 30. Bf3 {[%clk 0:01:12]}  Bc7 {[%clk 0:01:29]} 31. Rg8 {[%clk 0:01:02]}  Kf7 {[%clk 0:01:28]} 32. Rh8 {[%clk 0:00:55]}  e5 {[%clk 0:01:25]} 33. Kc1 {[%clk 0:00:53]}  a5 {[%clk 0:01:24]} 34. Kd2 {[%clk 0:00:53]}  b4 {[%clk 0:01:24]} 35. c3 {[%clk 0:00:52]}  Bb6 {[%clk 0:01:22]} 36. Rb8 {[%clk 0:00:44]}  Be3+ {[%clk 0:01:21]} 37. Kc2 {[%clk 0:00:44]}  Bc6 {[%clk 0:01:13]} 38. cxb4 {[%clk 0:00:37]}  axb4 {[%clk 0:01:13]} 39. Rxb4 {[%clk 0:00:35]}  Kf6 {[%clk 0:01:11]} 40. Nc3 {[%clk 0:00:32]}  Kg5 {[%clk 0:00:54]} 41. Nd5 {[%clk 0:00:28]}  Bd4 {[%clk 0:00:54]} 42. a4 {[%clk 0:00:20]}  Be8 {[%clk 0:00:48]} 43. a5 {[%clk 0:00:14]}  Bf2 {[%clk 0:00:45]} 44. Nc3 {[%clk 0:00:12]}  Kh4 {[%clk 0:00:28]} 45. a6 {[%clk 0:00:09]}  Kg3 {[%clk 0:00:28]} 46. Be2 {[%clk 0:00:05]}  f3 {[%clk 0:00:29]} 47. Bd1 {[%clk 0:00:01]}  Bg1 {[%clk 0:00:22]} 48. a7 {[%clk 0:00:02]}  Bxa7 {[%clk 0:00:22]} 49. Rb7 {[%clk 0:00:01]}  Bd4 {[%clk 0:00:17]} 50. Rxg7+ {[%clk 0:00:02]}  Kf4 {[%clk 0:00:17]} 51. Ne2+ {[%clk 0:00:02]}  fxe2 {[%clk 0:00:17]} 52. Bxe2 {[%clk 0:00:01]}  Bc6 {[%clk 0:00:17]} 53. Rc7 {[%clk 0:00:00]}  Bxe4+ {[%clk 0:00:17]} 0-1


[Site "https://www.chess.com"]

[Event "Titled Tuesday Blitz July 11 Early 2023"]
[White "SicilianPanzer"]
[Black "Principe, Gerson"]
[BlackFideId "3804550"]
[WhiteElo "2207"]
[BlackElo "2557"]
[Result "1-0"]
[Round "1"]
[TimeControl "180+2"]
[Date "2023.07.11"]
[WhiteClock "0:00:10"]
[BlackClock "0:00:00"]
[Board "185"]

1. e4 {[%clk 0:02:58]}  c5 {[%clk 0:02:59]} 2. Nf3 {[%clk 0:02:58]}  e6 {[%clk 0:02:58]} 3. b3 {[%clk 0:02:58]}  Nc6 {[%clk 0:02:57]} 4. Bb2 {[%clk 0:02:58]}  d5 {[%clk 0:02:46]} 5. exd5 {[%clk 0:02:57]}  exd5 {[%clk 0:02:46]} 6. Bb5 {[%clk 0:02:55]}  Nf6 {[%clk 0:02:47]} 7. O-O {[%clk 0:02:53]}  Be7 {[%clk 0:02:47]} 8. d4 {[%clk 0:02:49]}  O-O {[%clk 0:02:46]} 9. h3 {[%clk 0:02:32]}  a6 {[%clk 0:02:45]} 10. Bxc6 {[%clk 0:02:27]}  bxc6 {[%clk 0:02:45]} 11. dxc5 {[%clk 0:02:27]}  Bxc5 {[%clk 0:02:45]} 12. Nc3 {[%clk 0:02:24]}  Bf5 {[%clk 0:02:43]} 13. Ne2 {[%clk 0:02:22]}  Bd6 {[%clk 0:02:21]} 14. Rc1 {[%clk 0:01:55]}  Be6 {[%clk 0:01:27]} 15. Ng5 {[%clk 0:01:33]}  h6 {[%clk 0:01:25]} 16. Bxf6 {[%clk 0:01:03]}  Qxf6 {[%clk 0:01:21]} 17. Ne4 {[%clk 0:01:02]}  Qe7 {[%clk 0:01:03]} 18. Nxd6 {[%clk 0:01:01]}  Qxd6 {[%clk 0:01:03]} 19. Qd3 {[%clk 0:00:52]}  Rfd8 {[%clk 0:00:59]} 20. Rfd1 {[%clk 0:00:51]}  c5 {[%clk 0:00:50]} 21. Nc3 {[%clk 0:00:46]}  d4 {[%clk 0:00:50]} 22. Na4 {[%clk 0:00:33]}  Bd7 {[%clk 0:00:47]} 23. Nb2 {[%clk 0:00:29]}  Bb5 {[%clk 0:00:44]} 24. Qf3 {[%clk 0:00:27]}  Bc6 {[%clk 0:00:41]} 25. Qg4 {[%clk 0:00:19]}  Qd5 {[%clk 0:00:38]} 26. c4 {[%clk 0:00:10]}  Qd6 {[%clk 0:00:35]} 27. Nd3 {[%clk 0:00:10]}  Rac8 {[%clk 0:00:35]} 28. Re1 {[%clk 0:00:10]}  Bb7 {[%clk 0:00:28]} 29. Re2 {[%clk 0:00:10]}  Re8 {[%clk 0:00:18]} 30. Rce1 {[%clk 0:00:10]}  Rxe2 {[%clk 0:00:18]} 31. Qxe2 {[%clk 0:00:10]}  Bc6 {[%clk 0:00:16]} 32. f3 {[%clk 0:00:10]}  Re8 {[%clk 0:00:16]} 33. Qf2 {[%clk 0:00:10]}  Re6 {[%clk 0:00:15]} 34. Rxe6 {[%clk 0:00:09]}  fxe6 {[%clk 0:00:16]} 35. Qe1 {[%clk 0:00:09]}  Kf7 {[%clk 0:00:09]} 36. Qe5 {[%clk 0:00:10]}  Qd7 {[%clk 0:00:00]} 37. Qxc5 {[%clk 0:00:10]} 1-0


[Site "https://www.chess.com"]

[Event "Titled Tuesday Blitz July 11 Early 2023"]
[White "Mattheii"]
[Black "La Villa Rivas, Marlon Javier"]
[BlackFideId "3519546"]
[WhiteElo "2557"]
[BlackElo "2207"]
[Result "0-1"]
[Round "1"]
[TimeControl "180+2"]
[Date "2023.07.11"]
[WhiteClock "0:00:05"]
[BlackClock "0:00:52"]
[Board "186"]

1. d4 {[%clk 0:03:00]}  Nf6 {[%clk 0:02:59]} 2. c4 {[%clk 0:03:00]}  c5 {[%clk 0:02:59]} 3. d5 {[%clk 0:03:00]}  b5 {[%clk 0:02:59]} 4. cxb5 {[%clk 0:03:01]}  a6 {[%clk 0:02:59]} 5. b6 {[%clk 0:03:01]}  g6 {[%clk 0:02:58]} 6. Nc3 {[%clk 0:03:02]}  d6 {[%clk 0:02:58]} 7. e4 {[%clk 0:03:02]}  Bg7 {[%clk 0:02:58]} 8. Nf3 {[%clk 0:02:58]}  O-O {[%clk 0:02:57]} 9. Nd2 {[%clk 0:02:58]}  Nbd7 {[%clk 0:02:56]} 10. Be2 {[%clk 0:02:54]}  Rb8 {[%clk 0:02:56]} 11. O-O {[%clk 0:02:54]}  Rxb6 {[%clk 0:02:56]} 12. Qc2 {[%clk 0:02:52]}  Ne5 {[%clk 0:02:51]} 13. h3 {[%clk 0:02:42]}  e6 {[%clk 0:02:31]} 14. f4 {[%clk 0:02:31]}  Ned7 {[%clk 0:02:31]} 15. Nc4 {[%clk 0:02:31]}  exd5 {[%clk 0:02:18]} 16. Nxb6 {[%clk 0:02:30]}  Nxb6 {[%clk 0:02:19]} 17. exd5 {[%clk 0:02:26]}  Nfxd5 {[%clk 0:02:20]} 18. Nxd5 {[%clk 0:02:20]}  Nxd5 {[%clk 0:02:21]} 19. Bd2 {[%clk 0:01:44]}  Bf5 {[%clk 0:02:18]} 20. Bd3 {[%clk 0:01:37]}  Bd4+ {[%clk 0:01:45]} 21. Kh2 {[%clk 0:01:31]}  Bd7 {[%clk 0:01:29]} 22. Be4 {[%clk 0:01:18]}  Nf6 {[%clk 0:01:17]} 23. Bd3 {[%clk 0:01:18]}  Nh5 {[%clk 0:01:16]} 24. Bc3 {[%clk 0:01:05]}  Be3 {[%clk 0:01:15]} 25. f5 {[%clk 0:00:56]}  Qh4 {[%clk 0:01:14]} 26. Rf3 {[%clk 0:00:53]}  Bf4+ {[%clk 0:01:13]} 27. Kg1 {[%clk 0:00:51]}  Ng3 {[%clk 0:01:12]} 28. Qf2 {[%clk 0:00:44]}  g5 {[%clk 0:01:11]} 29. Re1 {[%clk 0:00:27]}  Bc6 {[%clk 0:01:11]} 30. Rxf4 {[%clk 0:00:20]}  gxf4 {[%clk 0:01:09]} 31. b3 {[%clk 0:00:13]}  Qg5 {[%clk 0:01:07]} 32. Ba1 {[%clk 0:00:12]}  Nxf5 {[%clk 0:01:01]} 33. Qb2 {[%clk 0:00:10]}  Nd4 {[%clk 0:01:00]} 34. Rf1 {[%clk 0:00:07]}  f3 {[%clk 0:00:58]} 35. g4 {[%clk 0:00:06]}  Qe3+ {[%clk 0:00:58]} 36. Kh2 {[%clk 0:00:04]}  Qxd3 {[%clk 0:00:58]} 37. Qf2 {[%clk 0:00:05]}  Qe2 {[%clk 0:00:58]} 38. Bxd4 {[%clk 0:00:04]}  cxd4 {[%clk 0:00:56]} 39. Kg3 {[%clk 0:00:05]}  Qxf2+ {[%clk 0:00:56]} 40. Kxf2 {[%clk 0:00:05]}  Re8 {[%clk 0:00:55]} 41. Rd1 {[%clk 0:00:06]}  Re2+ {[%clk 0:00:54]} 42. Kf1 {[%clk 0:00:07]}  Rxa2 {[%clk 0:00:52]} 43. Rxd4 {[%clk 0:00:05]}  Bb5+ {[%clk 0:00:52]} 0-1


[Site "https://www.chess.com"]

[Event "Titled Tuesday Blitz July 11 Early 2023"]
[White "Thiel, Thomas"]
[Black "Thecourseoisildur"]
[WhiteFideId "4615964"]
[WhiteElo "2205"]
[BlackElo "2557"]
[Result "0-1"]
[Round "1"]
[TimeControl "180+2"]
[Date "2023.07.11"]
[WhiteClock "0:00:26"]
[BlackClock "0:00:06"]
[Board "187"]

1. e4 {[%clk 0:02:54]}  c5 {[%clk 0:02:59]} 2. Nc3 {[%clk 0:02:53]}  Nc6 {[%clk 0:02:59]} 3. Bb5 {[%clk 0:02:52]}  Nd4 {[%clk 0:02:59]} 4. Bc4 {[%clk 0:02:51]}  e6 {[%clk 0:02:58]} 5. Nge2 {[%clk 0:02:49]}  a6 {[%clk 0:02:41]} 6. d3 {[%clk 0:02:46]}  b5 {[%clk 0:02:39]} 7. Bb3 {[%clk 0:02:45]}  Bb7 {[%clk 0:02:32]} 8. O-O {[%clk 0:02:43]}  d6 {[%clk 0:02:11]} 9. Nxd4 {[%clk 0:02:41]}  cxd4 {[%clk 0:02:11]} 10. Ne2 {[%clk 0:02:41]}  Qb6 {[%clk 0:02:11]} 11. f4 {[%clk 0:02:41]}  Nf6 {[%clk 0:02:10]} 12. f5 {[%clk 0:02:41]}  e5 {[%clk 0:02:05]} 13. Bg5 {[%clk 0:02:38]}  Be7 {[%clk 0:02:02]} 14. Bxf6 {[%clk 0:02:32]}  Bxf6 {[%clk 0:02:01]} 15. Ng3 {[%clk 0:02:32]}  Ke7 {[%clk 0:01:41]} 16. Nh5 {[%clk 0:02:27]}  a5 {[%clk 0:01:34]} 17. a4 {[%clk 0:02:25]}  bxa4 {[%clk 0:01:32]} 18. Bxa4 {[%clk 0:02:24]}  Bc6 {[%clk 0:01:23]} 19. Nxf6 {[%clk 0:02:17]}  gxf6 {[%clk 0:01:20]} 20. b3 {[%clk 0:02:02]}  Bxa4 {[%clk 0:01:14]} 21. Rxa4 {[%clk 0:02:03]}  Rac8 {[%clk 0:01:13]} 22. Qd2 {[%clk 0:02:01]}  Rc5 {[%clk 0:01:03]} 23. Rfa1 {[%clk 0:01:57]}  Rhc8 {[%clk 0:00:56]} 24. Rc4 {[%clk 0:01:52]}  Rxc4 {[%clk 0:00:50]} 25. bxc4 {[%clk 0:01:51]}  Ra8 {[%clk 0:00:43]} 26. Qc1 {[%clk 0:01:49]}  a4 {[%clk 0:00:41]} 27. Rb1 {[%clk 0:01:40]}  Qa6 {[%clk 0:00:31]} 28. Qa3 {[%clk 0:01:38]}  Qa5 {[%clk 0:00:25]} 29. h3 {[%clk 0:01:26]}  Qc5 {[%clk 0:00:22]} 30. Rb4 {[%clk 0:01:21]}  Kf8 {[%clk 0:00:14]} 31. Kh2 {[%clk 0:01:21]}  Kg7 {[%clk 0:00:14]} 32. c3 {[%clk 0:01:20]}  dxc3 {[%clk 0:00:12]} 33. Qxc3 {[%clk 0:01:20]}  a3 {[%clk 0:00:12]} 34. Rb1 {[%clk 0:01:17]}  a2 {[%clk 0:00:12]} 35. Ra1 {[%clk 0:01:17]}  Qd4 {[%clk 0:00:09]} 36. Qxd4 {[%clk 0:01:16]}  exd4 {[%clk 0:00:09]} 37. Kg3 {[%clk 0:01:16]}  Kh6 {[%clk 0:00:07]} 38. Kf4 {[%clk 0:01:15]}  Ra3 {[%clk 0:00:07]} 39. h4 {[%clk 0:01:10]}  Kg7 {[%clk 0:00:07]} 40. g4 {[%clk 0:01:07]}  h6 {[%clk 0:00:08]} 41. h5 {[%clk 0:01:04]}  Kf8 {[%clk 0:00:07]} 42. c5 {[%clk 0:01:01]}  dxc5 {[%clk 0:00:07]} 43. e5 {[%clk 0:01:01]}  fxe5+ {[%clk 0:00:03]} 44. Kxe5 {[%clk 0:01:01]}  c4 {[%clk 0:00:03]} 45. Kxd4 {[%clk 0:00:54]}  cxd3 {[%clk 0:00:03]} 46. Ke3 {[%clk 0:00:54]}  Kg7 {[%clk 0:00:04]} 47. Kd2 {[%clk 0:00:52]}  Kf6 {[%clk 0:00:04]} 48. Kc1 {[%clk 0:00:46]}  Kg5 {[%clk 0:00:05]} 49. Kb2 {[%clk 0:00:45]}  Ra7 {[%clk 0:00:05]} 50. Kc3 {[%clk 0:00:36]}  Kxg4 {[%clk 0:00:05]} 51. Kxd3 {[%clk 0:00:26]}  Kxf5 {[%clk 0:00:06]} 0-1


[Site "https://www.chess.com"]

[Event "Titled Tuesday Blitz July 11 Early 2023"]
[White "Yurovskykh, Oleksandr"]
[Black "Sariego Figueredo, Wilfredo"]
[WhiteFideId "14134020"]
[BlackFideId "3500080"]
[WhiteElo "2557"]
[BlackElo "2203"]
[Result "1/2-1/2"]
[Round "1"]
[TimeControl "180+2"]
[Date "2023.07.11"]
[WhiteClock "0:00:06"]
[BlackClock "0:01:05"]
[Board "188"]

1. d4 {[%clk 0:01:50]}  d5 {[%clk 0:02:57]} 2. Bf4 {[%clk 0:01:50]}  Nf6 {[%clk 0:02:57]} 3. e3 {[%clk 0:01:47]}  e6 {[%clk 0:02:58]} 4. Nd2 {[%clk 0:01:43]}  Bd6 {[%clk 0:02:57]} 5. Bg3 {[%clk 0:01:36]}  O-O {[%clk 0:02:57]} 6. Bd3 {[%clk 0:01:35]}  c5 {[%clk 0:02:56]} 7. c3 {[%clk 0:01:35]}  Qc7 {[%clk 0:02:54]} 8. dxc5 {[%clk 0:01:35]}  Qxc5 {[%clk 0:02:50]} 9. Ngf3 {[%clk 0:01:30]}  Bxg3 {[%clk 0:02:44]} 10. hxg3 {[%clk 0:01:30]}  Nc6 {[%clk 0:02:45]} 11. e4 {[%clk 0:01:24]}  dxe4 {[%clk 0:02:43]} 12. Nxe4 {[%clk 0:01:20]}  Nxe4 {[%clk 0:02:43]} 13. Bxe4 {[%clk 0:01:21]}  h6 {[%clk 0:02:38]} 14. Qe2 {[%clk 0:01:14]}  b6 {[%clk 0:02:14]} 15. O-O-O {[%clk 0:00:41]}  Bb7 {[%clk 0:02:11]} 16. Bc2 {[%clk 0:00:40]}  Rfd8 {[%clk 0:02:06]} 17. Qe4 {[%clk 0:00:39]}  Kf8 {[%clk 0:02:01]} 18. Qe2 {[%clk 0:00:21]}  Ne7 {[%clk 0:01:46]} 19. Rxd8+ {[%clk 0:00:19]}  Rxd8 {[%clk 0:01:47]} 20. Rd1 {[%clk 0:00:20]}  Rxd1+ {[%clk 0:01:43]} 21. Bxd1 {[%clk 0:00:21]}  Nf5 {[%clk 0:01:33]} 22. Bc2 {[%clk 0:00:21]}  Nd6 {[%clk 0:01:25]} 23. Bd3 {[%clk 0:00:20]}  Bd5 {[%clk 0:01:20]} 24. a3 {[%clk 0:00:19]}  Bc4 {[%clk 0:01:12]} 25. Bxc4 {[%clk 0:00:19]}  Nxc4 {[%clk 0:01:13]} 26. Nd2 {[%clk 0:00:18]}  Nxd2 {[%clk 0:01:10]} 27. Qxd2 {[%clk 0:00:19]}  Qg5 {[%clk 0:01:11]} 28. Qxg5 {[%clk 0:00:19]}  hxg5 {[%clk 0:01:11]} 29. Kd2 {[%clk 0:00:19]}  Ke7 {[%clk 0:01:12]} 30. Ke3 {[%clk 0:00:19]}  Kd6 {[%clk 0:01:13]} 31. Kd4 {[%clk 0:00:20]}  b5 {[%clk 0:01:12]} 32. g4 {[%clk 0:00:20]}  e5+ {[%clk 0:01:12]} 33. Ke4 {[%clk 0:00:20]}  g6 {[%clk 0:01:13]} 34. b3 {[%clk 0:00:19]}  Ke6 {[%clk 0:01:11]} 35. f3 {[%clk 0:00:19]}  f5+ {[%clk 0:01:12]} 36. Ke3 {[%clk 0:00:20]}  Kd5 {[%clk 0:01:11]} 37. gxf5 {[%clk 0:00:16]}  gxf5 {[%clk 0:01:12]} 38. g4 {[%clk 0:00:17]}  fxg4 {[%clk 0:01:08]} 39. fxg4 {[%clk 0:00:18]}  a5 {[%clk 0:01:06]} 40. Kd3 {[%clk 0:00:18]}  e4+ {[%clk 0:01:06]} 41. Ke3 {[%clk 0:00:18]}  a4 {[%clk 0:01:02]} 42. bxa4 {[%clk 0:00:18]}  bxa4 {[%clk 0:01:03]} 43. c4+ {[%clk 0:00:03]}  Kxc4 {[%clk 0:01:03]} 44. Kxe4 {[%clk 0:00:03]}  Kb3 {[%clk 0:01:04]} 45. Kd3 {[%clk 0:00:03]}  Kxa3 {[%clk 0:01:05]} 46. Kc3 {[%clk 0:00:04]}  Ka2 {[%clk 0:01:04]} 47. Kc2 {[%clk 0:00:04]}  Ka3 {[%clk 0:01:04]} 48. Kc3 {[%clk 0:00:04]}  Ka2 {[%clk 0:01:03]} 49. Kc2 {[%clk 0:00:05]}  Ka1 {[%clk 0:01:04]} 50. Kc1 {[%clk 0:00:05]}  Ka2 {[%clk 0:01:05]} 51. Kc2 {[%clk 0:00:06]} 1/2-1/2


[Site "https://www.chess.com"]

[Event "Titled Tuesday Blitz July 11 Early 2023"]
[White "Schachpanda_Youtube"]
[Black "Vovk, Orest"]
[BlackFideId "14113490"]
[WhiteElo "2200"]
[BlackElo "2556"]
[Result "0-1"]
[Round "1"]
[TimeControl "180+2"]
[Date "2023.07.11"]
[WhiteClock "0:00:00"]
[BlackClock "0:00:58"]
[Board "189"]

1. e4 {[%clk 0:02:58]}  g5 {[%clk 0:02:59]} 2. d4 {[%clk 0:02:58]}  h6 {[%clk 0:02:59]} 3. Nc3 {[%clk 0:02:56]}  Bg7 {[%clk 0:02:59]} 4. f4 {[%clk 0:02:55]}  c5 {[%clk 0:02:59]} 5. d5 {[%clk 0:02:47]}  Bxc3+ {[%clk 0:03:00]} 6. bxc3 {[%clk 0:02:47]}  d6 {[%clk 0:02:58]} 7. fxg5 {[%clk 0:02:46]}  Qa5 {[%clk 0:02:56]} 8. Qf3 {[%clk 0:02:39]}  hxg5 {[%clk 0:02:52]} 9. Bxg5 {[%clk 0:02:37]}  Nd7 {[%clk 0:02:51]} 10. a4 {[%clk 0:02:07]}  Ne5 {[%clk 0:02:46]} 11. Qg3 {[%clk 0:02:07]}  Nh6 {[%clk 0:02:35]} 12. Bb5+ {[%clk 0:02:03]}  Kd8 {[%clk 0:02:24]} 13. Ne2 {[%clk 0:01:56]}  Rg8 {[%clk 0:02:19]} 14. Qf4 {[%clk 0:01:42]}  Nhg4 {[%clk 0:02:13]} 15. O-O {[%clk 0:01:24]}  f6 {[%clk 0:02:06]} 16. Bh4 {[%clk 0:01:21]}  a6 {[%clk 0:02:06]} 17. h3 {[%clk 0:01:01]}  axb5 {[%clk 0:02:06]} 18. hxg4 {[%clk 0:00:59]}  Bxg4 {[%clk 0:02:03]} 19. Ng3 {[%clk 0:00:40]}  bxa4 {[%clk 0:01:56]} 20. Rab1 {[%clk 0:00:35]}  Kc7 {[%clk 0:01:49]} 21. Nf5 {[%clk 0:00:32]}  Bxf5 {[%clk 0:01:43]} 22. Qxf5 {[%clk 0:00:33]}  Qxc3 {[%clk 0:01:37]} 23. Qe6 {[%clk 0:00:26]}  Rg7 {[%clk 0:01:31]} 24. Bxf6 {[%clk 0:00:20]}  exf6 {[%clk 0:01:29]} 25. Rxf6 {[%clk 0:00:19]}  Rd7 {[%clk 0:01:03]} 26. Rf2 {[%clk 0:00:11]}  a3 {[%clk 0:01:00]} 27. Rf5 {[%clk 0:00:00]}  a2 {[%clk 0:00:58]} 0-1


[Site "https://www.chess.com"]

[Event "Titled Tuesday Blitz July 11 Early 2023"]
[White "Siniauski, Artsiom"]
[Black "Tagliata"]
[WhiteFideId "13512269"]
[WhiteElo "2556"]
[BlackElo "2195"]
[Result "1-0"]
[Round "1"]
[TimeControl "180+2"]
[Date "2023.07.11"]
[WhiteClock "0:00:16"]
[BlackClock "0:00:17"]
[Board "190"]

1. e4 {[%clk 0:03:00]}  c5 {[%clk 0:02:55]} 2. Nf3 {[%clk 0:03:00]}  Nc6 {[%clk 0:02:54]} 3. Bb5 {[%clk 0:03:00]}  e6 {[%clk 0:02:51]} 4. Bxc6 {[%clk 0:03:00]}  bxc6 {[%clk 0:02:52]} 5. d3 {[%clk 0:03:00]}  Ne7 {[%clk 0:02:51]} 6. h4 {[%clk 0:03:01]}  d6 {[%clk 0:02:48]} 7. h5 {[%clk 0:02:50]}  e5 {[%clk 0:02:47]} 8. h6 {[%clk 0:02:50]}  gxh6 {[%clk 0:02:42]} 9. Bxh6 {[%clk 0:02:51]}  Bxh6 {[%clk 0:02:43]} 10. Rxh6 {[%clk 0:02:51]}  Ng6 {[%clk 0:02:43]} 11. Nbd2 {[%clk 0:02:46]}  Qf6 {[%clk 0:02:40]} 12. Qe2 {[%clk 0:02:37]}  Bg4 {[%clk 0:02:38]} 13. O-O-O {[%clk 0:02:30]}  O-O-O {[%clk 0:02:23]} 14. Rdh1 {[%clk 0:02:24]}  Kc7 {[%clk 0:02:13]} 15. Qe3 {[%clk 0:02:22]}  Qg7 {[%clk 0:02:07]} 16. g3 {[%clk 0:02:10]}  Rb8 {[%clk 0:02:02]} 17. Ng5 {[%clk 0:02:06]}  Nf8 {[%clk 0:01:53]} 18. Nc4 {[%clk 0:01:41]}  f6 {[%clk 0:01:37]} 19. Nf3 {[%clk 0:01:40]}  Ne6 {[%clk 0:01:29]} 20. Nfd2 {[%clk 0:01:39]}  d5 {[%clk 0:01:29]} 21. Na5 {[%clk 0:01:22]}  Nd4 {[%clk 0:01:13]} 22. f3 {[%clk 0:01:02]}  Bd7 {[%clk 0:01:12]} 23. exd5 {[%clk 0:01:01]}  cxd5 {[%clk 0:01:13]} 24. f4 {[%clk 0:00:56]}  Nf5 {[%clk 0:01:08]} 25. Qxc5+ {[%clk 0:00:56]}  Kd8 {[%clk 0:01:05]} 26. R6h2 {[%clk 0:00:44]}  Nxg3 {[%clk 0:00:51]} 27. Re1 {[%clk 0:00:42]}  exf4 {[%clk 0:00:46]} 28. Qxa7 {[%clk 0:00:31]}  Kc8 {[%clk 0:00:34]} 29. Qc5+ {[%clk 0:00:18]}  Kd8 {[%clk 0:00:33]} 30. Nf3 {[%clk 0:00:18]}  Rb5 {[%clk 0:00:26]} 31. Qa7 {[%clk 0:00:18]}  Kc8 {[%clk 0:00:23]} 32. Nd4 {[%clk 0:00:17]}  Rb8 {[%clk 0:00:23]} 33. Qc5+ {[%clk 0:00:16]}  Kd8 {[%clk 0:00:21]} 34. Nac6+ {[%clk 0:00:16]}  Bxc6 {[%clk 0:00:20]} 35. Ne6+ {[%clk 0:00:17]}  Kd7 {[%clk 0:00:21]} 36. Nxg7 {[%clk 0:00:18]}  Rhf8 {[%clk 0:00:17]} 37. Re7+ {[%clk 0:00:16]} 1-0


[Site "https://www.chess.com"]